Workbook

Sheet 水路
B1: 水路断面の検討
B3: 1）流出量
B5: Ｑ＝ | C5: 1 | D5: (m3/sec)
B7: 2）通水能力
B10: 右図のような断面を仮定し、通水断面は８割で検討する。
F13: -------- マニング式
B17: Ｖ ： 平均流速(m/sec)
B18: Ｑｃ： 排水量 (m3/sec) | G18: Ｑｃ＞Ｑでなければならない。
B19: Ａ ： 通水断面積(m2) | F19: A= | G19: B・H・0.8
B20: ｎ ： 粗度係数 | F20: n= | G20: 0.013
B21: Ｒ ： 径 深(m) | F21: R= | G21: A / P
B22: Ｐ ： 潤辺長(m) | F22: P= | G22: B + 2・H・0.8
B23: Ｉ ： 流路勾配 | F23: I= | G23: 0.5 | H23: %
P25: 左 | S25: 右
B26: Ｂ | C26: Ｈ | D26: Ｖ | E26: Ｑｃ | F26: Ｑ | G26: 判定 | H26: Ｂ | I26: Ｈ | J26: Ｖ | K26: Ｑｃ | L26: Ｑ | M26: 判定 | P26: 面積 | Q26: 径深 | R26: 潤辺 | S26: 面積 | T26: 径深 | U26: 潤辺
B27: 150 | C27: 150 | D27: =ROUND(マニング($G$20,$G$23,$B27,$C27),3) -> 0.7 | E27: =ROUND(流量($G$20,$G$23,$B27,$C27),3) -> 0.013 | F27: =$C$5 -> 1 | G27: =IF((E27)>=F27," ○ "," ×") -> × | H27: 450 | I27: 450 | J27: =ROUND(マニング($G$20,$G$23,$H27,$I27),3) -> 1.456 | K27: =ROUND(流量($G$20,$G$23,$H27,$I27),3) -> 0.236 | L27: =$C$5 -> 1 | M27: =IF((K27)>=L27," ○ "," ×") -> × | P27: =ROUND((B27/1000)*(C27/1000),3) -> 0.023 | Q27: =ROUND(P27/R27,3) -> 0.051 | R27: =ROUND((B27/1000)+(C27/1000)*2,3) -> 0.45 | S27: =ROUND((H27/1000)*(I27/1000),3) -> 0.203 | T27: =ROUND(S27/U27,3) -> 0.15 | U27: =ROUND((H27/1000)+(I27/1000)*2,3) -> 1.35
B28: 180 | C28: 180 | D28: =ROUND(マニング($G$20,$G$23,$B28,$C28),3) -> 0.79 | E28: =ROUND(流量($G$20,$G$23,$B28,$C28),3) -> 0.02 | F28: 1 | G28: × | H28: 500 | I28: 500 | J28: =ROUND(マニング($G$20,$G$23,$H28,$I28),3) -> 1.562 | K28: =ROUND(流量($G$20,$G$23,$H28,$I28),3) -> 0.312 | L28: 1 | M28: × | P28: =ROUND((B28/1000)*(C28/1000),3) -> 0.032 | Q28: =ROUND(P28/R28,3) -> 0.059 | R28: =ROUND((B28/1000)+(C28/1000)*2,3) -> 0.54 | S28: =ROUND((H28/1000)*(I28/1000),3) -> 0.25 | T28: =ROUND(S28/U28,3) -> 0.167 | U28: =ROUND((H28/1000)+(I28/1000)*2,3) -> 1.5
B29: 240 | C29: 240 | D29: =ROUND(マニング($G$20,$G$23,$B29,$C29),3) -> 0.957 | E29: =ROUND(流量($G$20,$G$23,$B29,$C29),3) -> 0.044 | F29: 1 | G29: × | H29: 500 | I29: 600 | J29: =ROUND(マニング($G$20,$G$23,$H29,$I29),3) -> 1.632 | K29: =ROUND(流量($G$20,$G$23,$H29,$I29),3) -> 0.392 | L29: 1 | M29: × | P29: 0.058 | Q29: 0.081 | R29: 0.72 | S29: 0.3 | T29: 0.176 | U29: 1.7
B30: 300 | C30: 300 | D30: =ROUND(マニング($G$20,$G$23,$B30,$C30),3) -> 1.111 | E30: =ROUND(流量($G$20,$G$23,$B30,$C30),3) -> 0.08 | F30: 1 | G30: × | H30: 500 | I30: 700 | J30: =ROUND(マニング($G$20,$G$23,$H30,$I30),3) -> 1.688 | K30: =ROUND(流量($G$20,$G$23,$H30,$I30),3) -> 0.473 | L30: 1 | M30: × | P30: 0.09 | Q30: 0.1 | R30: 0.9 | S30: 0.35 | T30: 0.184 | U30: 1.9
B31: 300 | C31: 400 | D31: =ROUND(マニング($G$20,$G$23,$B31,$C31),3) -> 1.188 | E31: =ROUND(流量($G$20,$G$23,$B31,$C31),3) -> 0.114 | F31: 1 | G31: × | H31: 500 | I31: 800 | J31: =ROUND(マニング($G$20,$G$23,$H31,$I31),3) -> 1.733 | K31: =ROUND(流量($G$20,$G$23,$H31,$I31),3) -> 0.554 | L31: 1 | M31: × | P31: 0.12 | Q31: 0.109 | R31: 1.1 | S31: 0.4 | T31: 0.19 | U31: 2.1
B32: 300 | C32: 500 | D32: =ROUND(マニング($G$20,$G$23,$B32,$C32),3) -> 1.242 | E32: =ROUND(流量($G$20,$G$23,$B32,$C32),3) -> 0.149 | F32: 1 | G32: × | H32: 500 | I32: 900 | J32: =ROUND(マニング($G$20,$G$23,$H32,$I32),3) -> 1.77 | K32: =ROUND(流量($G$20,$G$23,$H32,$I32),3) -> 0.637 | L32: 1 | M32: × | P32: 0.15 | Q32: 0.115 | R32: 1.3 | S32: 0.45 | T32: 0.196 | U32: 2.3
B33: 300 | C33: 600 | D33: =ROUND(マニング($G$20,$G$23,$B33,$C33),3) -> 1.281 | E33: =ROUND(流量($G$20,$G$23,$B33,$C33),3) -> 0.184 | F33: 1 | G33: × | H33: 500 | I33: 1000 | J33: =ROUND(マニング($G$20,$G$23,$H33,$I33),3) -> 1.801 | K33: =ROUND(流量($G$20,$G$23,$H33,$I33),3) -> 0.72 | L33: 1 | M33: × | P33: 0.18 | Q33: 0.12 | R33: 1.5 | S33: 0.5 | T33: 0.2 | U33: 2.5
B34: 300 | C34: 700 | D34: =ROUND(マニング($G$20,$G$23,$B34,$C34),3) -> 1.311 | E34: =ROUND(流量($G$20,$G$23,$B34,$C34),3) -> 0.22 | F34: 1 | G34: × | H34: 500 | I34: 1100 | J34: =ROUND(マニング($G$20,$G$23,$H34,$I34),3) -> 1.827 | K34: =ROUND(流量($G$20,$G$23,$H34,$I34),3) -> 0.804 | L34: 1 | M34: × | P34: 0.21 | Q34: 0.124 | R34: 1.7 | S34: 0.55 | T34: 0.204 | U34: 2.7
B35: 300 | C35: 800 | D35: =ROUND(マニング($G$20,$G$23,$B35,$C35),3) -> 1.334 | E35: =ROUND(流量($G$20,$G$23,$B35,$C35),3) -> 0.256 | F35: 1 | G35: × | H35: 500 | I35: 1200 | J35: =ROUND(マニング($G$20,$G$23,$H35,$I35),3) -> 1.85 | K35: =ROUND(流量($G$20,$G$23,$H35,$I35),3) -> 0.888 | L35: 1 | M35: × | P35: 0.24 | Q35: 0.126 | R35: 1.9 | S35: 0.6 | T35: 0.207 | U35: 2.9
B36: 300 | C36: 900 | D36: =ROUND(マニング($G$20,$G$23,$B36,$C36),3) -> 1.354 | E36: =ROUND(流量($G$20,$G$23,$B36,$C36),3) -> 0.292 | F36: 1 | G36: × | H36: 500 | I36: 1300 | J36: =ROUND(マニング($G$20,$G$23,$H36,$I36),3) -> 1.87 | K36: =ROUND(流量($G$20,$G$23,$H36,$I36),3) -> 0.972 | L36: 1 | M36: × | P36: 0.27 | Q36: 0.129 | R36: 2.1 | S36: 0.65 | T36: 0.21 | U36: 3.1
B37: 300 | C37: 1000 | D37: =ROUND(マニング($G$20,$G$23,$B37,$C37),3) -> 1.369 | E37: =ROUND(流量($G$20,$G$23,$B37,$C37),3) -> 0.329 | F37: 1 | G37: × | H37: 500 | I37: 1400 | J37: =ROUND(マニング($G$20,$G$23,$H37,$I37),3) -> 1.887 | K37: =ROUND(流量($G$20,$G$23,$H37,$I37),3) -> 1.057 | L37: 1 | M37: ○ | P37: 0.3 | Q37: 0.13 | R37: 2.3 | S37: 0.7 | T37: 0.212 | U37: 3.3
B38: 300 | C38: 1100 | D38: =ROUND(マニング($G$20,$G$23,$B38,$C38),3) -> 1.383 | E38: =ROUND(流量($G$20,$G$23,$B38,$C38),3) -> 0.365 | F38: 1 | G38: × | H38: 500 | I38: 1500 | J38: =ROUND(マニング($G$20,$G$23,$H38,$I38),3) -> 1.903 | K38: =ROUND(流量($G$20,$G$23,$H38,$I38),3) -> 1.142 | L38: 1 | M38: ○ | P38: 0.33 | Q38: 0.132 | R38: 2.5 | S38: 0.75 | T38: 0.214 | U38: 3.5
B39: 300 | C39: 1200 | D39: =ROUND(マニング($G$20,$G$23,$B39,$C39),3) -> 1.394 | E39: =ROUND(流量($G$20,$G$23,$B39,$C39),3) -> 0.401 | F39: 1 | G39: × | H39: 500 | I39: 1600 | J39: =ROUND(マニング($G$20,$G$23,$H39,$I39),3) -> 1.917 | K39: =ROUND(流量($G$20,$G$23,$H39,$I39),3) -> 1.227 | L39: 1 | M39: ○ | P39: 0.36 | Q39: 0.133 | R39: 2.7 | S39: 0.8 | T39: 0.216 | U39: 3.7
B40: 300 | C40: 1300 | D40: =ROUND(マニング($G$20,$G$23,$B40,$C40),3) -> 1.404 | E40: =ROUND(流量($G$20,$G$23,$B40,$C40),3) -> 0.438 | F40: 1 | G40: × | H40: 600 | I40: 600 | J40: =ROUND(マニング($G$20,$G$23,$H40,$I40),3) -> 1.764 | K40: =ROUND(流量($G$20,$G$23,$H40,$I40),3) -> 0.508 | L40: 1 | M40: × | P40: 0.39 | Q40: 0.134 | R40: 2.9 | S40: 0.36 | T40: 0.2 | U40: 1.8
B41: 300 | C41: 1400 | D41: =ROUND(マニング($G$20,$G$23,$B41,$C41),3) -> 1.412 | E41: =ROUND(流量($G$20,$G$23,$B41,$C41),3) -> 0.474 | F41: 1 | G41: × | H41: 600 | I41: 700 | J41: =ROUND(マニング($G$20,$G$23,$H41,$I41),3) -> 1.831 | K41: =ROUND(流量($G$20,$G$23,$H41,$I41),3) -> 0.615 | L41: 1 | M41: × | P41: 0.42 | Q41: 0.135 | R41: 3.1 | S41: 0.42 | T41: 0.21 | U41: 2
B42: 300 | C42: 1500 | D42: =ROUND(マニング($G$20,$G$23,$B42,$C42),3) -> 1.42 | E42: =ROUND(流量($G$20,$G$23,$B42,$C42),3) -> 0.511 | F42: 1 | G42: × | H42: 600 | I42: 800 | J42: =ROUND(マニング($G$20,$G$23,$H42,$I42),3) -> 1.887 | K42: =ROUND(流量($G$20,$G$23,$H42,$I42),3) -> 0.724 | L42: 1 | M42: × | P42: 0.45 | Q42: 0.136 | R42: 3.3 | S42: 0.48 | T42: 0.218 | U42: 2.2
B43: 300 | C43: 1600 | D43: =ROUND(マニング($G$20,$G$23,$B43,$C43),3) -> 1.426 | E43: =ROUND(流量($G$20,$G$23,$B43,$C43),3) -> 0.548 | F43: 1 | G43: × | H43: 600 | I43: 900 | J43: =ROUND(マニング($G$20,$G$23,$H43,$I43),3) -> 1.932 | K43: =ROUND(流量($G$20,$G$23,$H43,$I43),3) -> 0.835 | L43: 1 | M43: × | P43: 0.48 | Q43: 0.137 | R43: 3.5 | S43: 0.54 | T43: 0.225 | U43: 2.4
B44: 400 | C44: 400 | D44: =ROUND(マニング($G$20,$G$23,$B44,$C44),3) -> 1.346 | E44: =ROUND(流量($G$20,$G$23,$B44,$C44),3) -> 0.172 | F44: 1 | G44: × | H44: 600 | I44: 1000 | J44: =ROUND(マニング($G$20,$G$23,$H44,$I44),3) -> 1.971 | K44: =ROUND(流量($G$20,$G$23,$H44,$I44),3) -> 0.946 | L44: 1 | M44: × | P44: 0.16 | Q44: 0.133 | R44: 1.2 | S44: 0.6 | T44: 0.231 | U44: 2.6
B45: 400 | C45: 500 | D45: =ROUND(マニング($G$20,$G$23,$B45,$C45),3) -> 1.42 | E45: =ROUND(流量($G$20,$G$23,$B45,$C45),3) -> 0.227 | F45: 1 | G45: × | H45: 600 | I45: 1100 | J45: =ROUND(マニング($G$20,$G$23,$H45,$I45),3) -> 2.005 | K45: =ROUND(流量($G$20,$G$23,$H45,$I45),3) -> 1.058 | L45: 1 | M45: ○ | P45: 0.2 | Q45: 0.143 | R45: 1.4 | S45: 0.66 | T45: 0.236 | U45: 2.8
B46: 400 | C46: 600 | D46: =ROUND(マニング($G$20,$G$23,$B46,$C46),3) -> 1.475 | E46: =ROUND(流量($G$20,$G$23,$B46,$C46),3) -> 0.283 | F46: 1 | G46: × | H46: 600 | I46: 1200 | J46: =ROUND(マニング($G$20,$G$23,$H46,$I46),3) -> 2.033 | K46: =ROUND(流量($G$20,$G$23,$H46,$I46),3) -> 1.171 | L46: 1 | M46: ○ | P46: 0.24 | Q46: 0.15 | R46: 1.6 | S46: 0.72 | T46: 0.24 | U46: 3
B47: 400 | C47: 700 | D47: =ROUND(マニング($G$20,$G$23,$B47,$C47),3) -> 1.518 | E47: =ROUND(流量($G$20,$G$23,$B47,$C47),3) -> 0.34 | F47: 1 | G47: × | H47: 600 | I47: 1300 | J47: =ROUND(マニング($G$20,$G$23,$H47,$I47),3) -> 2.059 | K47: =ROUND(流量($G$20,$G$23,$H47,$I47),3) -> 1.285 | L47: 1 | M47: ○ | P47: 0.28 | Q47: 0.156 | R47: 1.8 | S47: 0.78 | T47: 0.244 | U47: 3.2
B48: 400 | C48: 800 | D48: =ROUND(マニング($G$20,$G$23,$B48,$C48),3) -> 1.552 | E48: =ROUND(流量($G$20,$G$23,$B48,$C48),3) -> 0.397 | F48: 1 | G48: × | H48: 600 | I48: 1400 | J48: =ROUND(マニング($G$20,$G$23,$H48,$I48),3) -> 2.081 | K48: =ROUND(流量($G$20,$G$23,$H48,$I48),3) -> 1.398 | L48: 1 | M48: ○ | P48: 0.32 | Q48: 0.16 | R48: 2 | S48: 0.84 | T48: 0.247 | U48: 3.4
B49: 400 | C49: 900 | D49: =ROUND(マニング($G$20,$G$23,$B49,$C49),3) -> 1.58 | E49: =ROUND(流量($G$20,$G$23,$B49,$C49),3) -> 0.455 | F49: 1 | G49: × | H49: 600 | I49: 1500 | J49: =ROUND(マニング($G$20,$G$23,$H49,$I49),3) -> 2.101 | K49: =ROUND(流量($G$20,$G$23,$H49,$I49),3) -> 1.512 | L49: 1 | M49: ○ | P49: 0.36 | Q49: 0.164 | R49: 2.2 | S49: 0.9 | T49: 0.25 | U49: 3.6
B50: 400 | C50: 1000 | D50: =ROUND(マニング($G$20,$G$23,$B50,$C50),3) -> 1.603 | E50: =ROUND(流量($G$20,$G$23,$B50,$C50),3) -> 0.513 | F50: 1 | G50: × | H50: 600 | I50: 1600 | J50: =ROUND(マニング($G$20,$G$23,$H50,$I50),3) -> 2.118 | K50: =ROUND(流量($G$20,$G$23,$H50,$I50),3) -> 1.627 | L50: 1 | M50: ○ | P50: 0.4 | Q50: 0.167 | R50: 2.4 | S50: 0.96 | T50: 0.253 | U50: 3.8
B51: 400 | C51: 1100 | D51: =ROUND(マニング($G$20,$G$23,$B51,$C51),3) -> 1.623 | E51: =ROUND(流量($G$20,$G$23,$B51,$C51),3) -> 0.571 | F51: 1 | G51: × | H51: 700 | I51: 700 | J51: =ROUND(マニング($G$20,$G$23,$H51,$I51),3) -> 1.954 | K51: =ROUND(流量($G$20,$G$23,$H51,$I51),3) -> 0.766 | L51: 1 | M51: × | P51: 0.44 | Q51: 0.169 | R51: 2.6 | S51: 0.49 | T51: 0.233 | U51: 2.1
B52: 400 | C52: 1200 | D52: =ROUND(マニング($G$20,$G$23,$B52,$C52),3) -> 1.64 | E52: =ROUND(流量($G$20,$G$23,$B52,$C52),3) -> 0.63 | F52: 1 | G52: × | H52: 800 | I52: 800 | J52: =ROUND(マニング($G$20,$G$23,$H52,$I52),3) -> 2.136 | K52: =ROUND(流量($G$20,$G$23,$H52,$I52),3) -> 1.094 | L52: 1 | M52: ○ | P52: 0.48 | Q52: 0.171 | R52: 2.8 | S52: 0.64 | T52: 0.267 | U52: 2.4
B53: 400 | C53: 1300 | D53: =ROUND(マニング($G$20,$G$23,$B53,$C53),3) -> 1.654 | E53: =ROUND(流量($G$20,$G$23,$B53,$C53),3) -> 0.688 | F53: 1 | G53: × | H53: 900 | I53: 900 | J53: =ROUND(マニング($G$20,$G$23,$H53,$I53),3) -> 2.311 | K53: =ROUND(流量($G$20,$G$23,$H53,$I53),3) -> 1.497 | L53: 1 | M53: ○ | P53: 0.52 | Q53: 0.173 | R53: 3 | S53: 0.81 | T53: 0.3 | U53: 2.7
B54: 400 | C54: 1400 | D54: =ROUND(マニング($G$20,$G$23,$B54,$C54),3) -> 1.667 | E54: =ROUND(流量($G$20,$G$23,$B54,$C54),3) -> 0.747 | F54: 1 | G54: × | H54: 1000 | I54: 1000 | J54: =ROUND(マニング($G$20,$G$23,$H54,$I54),3) -> 2.479 | K54: =ROUND(流量($G$20,$G$23,$H54,$I54),3) -> 1.983 | L54: 1 | M54: ○ | P54: 0.56 | Q54: 0.175 | R54: 3.2 | S54: 1 | T54: 0.333 | U54: 3
B55: 400 | C55: 1500 | D55: =ROUND(マニング($G$20,$G$23,$B55,$C55),3) -> 1.679 | E55: =ROUND(流量($G$20,$G$23,$B55,$C55),3) -> 0.806 | F55: 1 | G55: × | H55: 1100 | I55: 1100 | J55: =ROUND(マニング($G$20,$G$23,$H55,$I55),3) -> 2.642 | K55: =ROUND(流量($G$20,$G$23,$H55,$I55),3) -> 2.557 | L55: 1 | M55: ○ | P55: 0.6 | Q55: 0.176 | R55: 3.4 | S55: 1.21 | T55: 0.367 | U55: 3.3
B56: 400 | C56: 1600 | D56: =ROUND(マニング($G$20,$G$23,$B56,$C56),3) -> 1.689 | E56: =ROUND(流量($G$20,$G$23,$B56,$C56),3) -> 0.865 | F56: 1 | G56: × | H56: 1200 | I56: 1200 | J56: =ROUND(マニング($G$20,$G$23,$H56,$I56),3) -> 2.799 | K56: =ROUND(流量($G$20,$G$23,$H56,$I56),3) -> 3.225 | L56: 1 | M56: ○ | P56: 0.64 | Q56: 0.178 | R56: 3.6 | S56: 1.44 | T56: 0.4 | U56: 3.6
